bitfinex/quotes_BTCUSD_20251117
["timestamp","ask_amount","ask_price","bid_price","bid_amount"]
[1763381785706,0.10416178,95521.0,95518.0,0.0452]
[1763381785912,0.10416178,95521.0,95520.0,0.02001]
[1763381786728,0.10416178,95521.0,95520.0,0.04968]
[1763381787841,0.01643681,95531.0,95520.0,0.04968]
[1763381788593,0.01643681,95531.0,95520.0,0.03868]
[1763381788997,0.00104633,95529.0,95528.0,0.00641]
[1763381789207,0.00104633,95529.0,95528.0,0.05609]
[1763381790031,4.633e-05,95529.0,95528.0,0.05609]
[1763381791466,4.69993721,95561.0,95540.0,0.5936969]
[1763381791667,4.70006696,95561.0,95560.0,0.03488]
[1763381792007,4.70006696,95561.0,95560.0,0.06455]
[1763381792620,5.02306696,95561.0,95560.0,0.06455]
[1763381793026,5.02306696,95561.0,95560.0,0.03488]
[1763381793867,5.02306696,95561.0,95560.0,0.06455]
[1763381795350,5.02306696,95561.0,95560.0,0.03488]
[1763381795795,5.02306696,95561.0,95560.0,0.02788]
[1763381798230,5.02306696,95561.0,95560.0,0.05755]
[1763381801286,5.02306696,95561.0,95560.0,0.02788]
[1763381801871,5.02306696,95561.0,95560.0,0.05755]
[1763381802908,5.02306696,95561.0,95560.0,0.04155]
[1763381803106,5.02306696,95561.0,95560.0,0.06156]
[1763381804074,4.81782929,95561.0,95560.0,0.06156]
[1763381804481,4.49482929,95561.0,95560.0,0.06156]
[1763381807321,4.29498728,95561.0,95560.0,0.06156]
[1763381807686,4.29498728,95561.0,95560.0,0.06256]
[1763381810048,4.29498728,95561.0,95560.0,0.03956]
[1763381813977,4.29498728,95561.0,95550.0,0.01553]
[1763381813978,4.29498728,95561.0,95542.0,0.04341874]
[1763381814390,4.29498728,95561.0,95556.0,0.10416178]
[1763381817140,4.29498728,95561.0,95556.0,0.08316178]
[1763381820397,4.29498728,95561.0,95541.0,0.05071261]
[1763381820597,0.01945718,95560.0,95541.0,0.05071261]
[1763381820800,0.01945718,95559.0,95541.0,0.05071261]
[1763381821017,4.29498728,95561.0,95541.0,0.05071261]
[1763381821263,0.01945777,95560.0,95541.0,0.05071261]
[1763381821470,4.29498728,95561.0,95541.0,0.05071261]
[1763381821471,0.01945777,95559.0,95541.0,0.05071261]
[1763381821625,0.01945777,95558.0,95541.0,0.05071261]
[1763381821808,4.29498728,95561.0,95541.0,0.05071261]
[1763381822013,0.01946305,95560.0,95541.0,0.05071261]
[1763381822233,0.01946305,95559.0,95541.0,0.05071261]
[1763381822448,0.01946305,95558.0,95541.0,0.05071261]
[1763381822646,4.29498728,95561.0,95541.0,0.05071261]
[1763381822849,0.01946491,95560.0,95541.0,0.05071261]
[1763381823023,0.01946491,95559.0,95556.0,0.10416178]
[1763381823224,4.29498728,95561.0,95557.0,0.02092991]
[1763381823429,4.29498728,95561.0,95558.0,0.02092969]
[1763381823795,0.01946662,95560.0,95541.0,0.05071261]
[1763381823994,0.01946662,95559.0,95541.0,0.05071261]
[1763381824199,0.01946662,95558.0,95541.0,0.05071261]
[1763381824347,4.29498728,95561.0,95542.0,0.10416178]
[1763381824348,0.01946662,95557.0,95542.0,0.10416178]
[1763381824518,0.01946662,95556.0,95542.0,0.10416178]
[1763381824715,4.29498728,95561.0,95542.0,0.10416178]
[1763381824716,0.01946662,95555.0,95542.0,0.10416178]
[1763381824933,0.01946662,95554.0,95539.0,0.00024261]
[1763381825204,0.01946662,95553.0,95539.0,0.00024261]
[1763381825365,0.01946662,95552.0,95539.0,0.00024261]
[1763381825535,0.01946662,95551.0,95539.0,0.00024261]
[1763381825731,0.01946662,95550.0,95539.0,0.00024261]
[1763381825935,0.13560178,95560.0,95539.0,0.00024261]
[1763381826159,0.01946674,95559.0,95539.0,0.00024261]
[1763381826363,0.01946674,95558.0,95539.0,0.00024261]
[1763381826618,0.01946674,95557.0,95539.0,0.00024261]
[1763381826839,0.01946674,95556.0,95539.0,0.00024261]
[1763381827043,0.01946674,95555.0,95539.0,0.00024261]
[1763381827323,0.01946674,95554.0,95539.0,0.00024261]
[1763381827473,0.01946674,95553.0,95539.0,0.00024261]
[1763381827673,0.01946674,95552.0,95539.0,0.00024261]
[1763381827869,0.01946674,95551.0,95539.0,0.00024261]
[1763381828124,0.01946674,95550.0,95539.0,0.00024261]
[1763381828375,0.01946674,95549.0,95539.0,0.00024261]
[1763381828577,0.01946674,95548.0,95539.0,0.00024261]
[1763381828779,0.01946651,95547.0,95539.0,0.00024261]
[1763381828992,0.01946669,95546.0,95539.0,0.00024261]
[1763381829245,4.31004728,95561.0,95539.0,0.00024261]
[1763381829485,0.01946618,95560.0,95539.0,0.00024261]
[1763381829657,0.01946618,95559.0,95539.0,0.00024261]
[1763381829881,0.01946618,95558.0,95539.0,0.00024261]
[1763381830083,0.01946618,95557.0,95539.0,0.00024261]
[1763381830436,0.01946618,95556.0,95539.0,0.00024261]
[1763381830610,0.01946618,95555.0,95539.0,0.00024261]
[1763381830817,0.01506,95540.0,95539.0,0.00024261]
[1763381831026,0.03574,95540.0,95539.0,0.00024261]
[1763381831237,0.05520414,95540.0,95539.0,0.00024261]
[1763381831378,0.03574,95540.0,95520.0,0.03140439]
[1763381831582,0.01946025,95539.0,95520.0,0.03140439]
[1763381832235,0.01506,95540.0,95520.0,0.03140439]
[1763381832470,0.01945573,95539.0,95510.0,9.6e-05]
[1763381832651,0.01945573,95538.0,95510.0,9.6e-05]
[1763381832820,0.01945573,95537.0,95510.0,9.6e-05]
[1763381833033,0.01945573,95536.0,95510.0,9.6e-05]
[1763381833236,0.01506,95540.0,95510.0,9.6e-05]
[1763381833237,0.01945573,95535.0,95510.0,9.6e-05]
[1763381833445,0.01945573,95534.0,95510.0,9.6e-05]
[1763381833664,0.01506,95540.0,95510.0,9.6e-05]
[1763381833936,0.12360603,95539.0,95510.0,9.6e-05]
[1763381834130,0.01944425,95538.0,95510.0,9.6e-05]
[1763381834374,0.01944425,95537.0,95510.0,9.6e-05]
[1763381834687,0.01944425,95536.0,95510.0,9.6e-05]
[1763381834900,0.01506,95540.0,95510.0,0.86955227]
[1763381835101,0.12359801,95539.0,95511.0,0.02093999]
[1763381835314,0.01943623,95538.0,95512.0,0.02093977]
[1763381835438,0.01506,95540.0,95513.0,0.02029125]
[1763381835639,0.01942973,95539.0,95516.0,0.10416178]
[1763381835954,0.01506,95540.0,95516.0,0.10416178]
[1763381835955,0.01942973,95538.0,95517.0,0.02000512]
[1763381836181,0.01506,95540.0,95518.0,0.02093846]
[1763381837275,0.01506,95540.0,95519.0,0.02093824]
[1763381837508,0.01506,95540.0,95520.0,0.02093802]
[1763381837671,0.01618,95549.0,95521.0,0.0209378]
[1763381837831,0.01942316,95548.0,95520.0,0.86945627]
[1763381838026,0.01942316,95547.0,95520.0,0.86945627]
[1763381838225,0.10416178,95544.0,95516.0,0.10416178]
[1763381838467,0.10416178,95544.0,95516.0,0.06616178]
[1763381838691,0.03036,95543.0,95516.0,0.06616178]
[1763381839515,0.10416178,95540.0,95516.0,0.06616178]
[1763381841321,0.10416178,95540.0,95517.0,0.00029]
[1763381841727,0.10416178,95541.0,95517.0,0.0159]
[1763381842257,0.10416178,95541.0,95518.0,0.05119846]
[1763381842463,0.01618,95544.0,95518.0,0.05119846]
[1763381842658,0.10416178,95543.0,95519.0,0.03026]
[1763381842877,0.10416178,95543.0,95520.0,0.01584599]
[1763381843082,0.10416178,95543.0,95521.0,0.01979624]
[1763381843501,0.10416178,95543.0,95522.0,0.05119758]
[1763381843707,0.11922178,95560.0,95542.0,0.03542]
[1763381843945,0.0194209,95559.0,95543.0,0.01981]
[1763381844138,0.10416178,95560.0,95543.0,0.01981]
[1763381844139,0.0194209,95558.0,95543.0,0.05007]
[1763381844363,0.10416178,95560.0,95543.0,0.05007]
[1763381844585,0.01942292,95559.0,95544.0,0.03041]
[1763381844794,0.01942292,95558.0,95544.0,0.03041]
[1763381844962,0.10416178,95560.0,95544.0,0.03041]
[1763381845194,0.01942293,95559.0,95544.0,0.03041]
[1763381845395,0.01942293,95558.0,95544.0,0.03041]
[1763381845579,0.10416178,95560.0,95544.0,0.00441]
[1763381845740,0.01942559,95559.0,95542.0,0.01561]
[1763381846081,0.10416178,95560.0,95542.0,0.01561]
[1763381846297,0.01942903,95559.0,95542.0,0.01561]
[1763381846460,0.10416178,95560.0,95542.0,0.01561]
[1763381846658,0.03455903,95559.0,95542.0,0.01561]
[1763381846856,0.01942903,95558.0,95542.0,0.01561]
[1763381847056,0.04797,95559.0,95542.0,0.01561]
[1763381847409,0.03284,95558.0,95542.0,0.01561]
[1763381848280,0.03284,95558.0,95526.0,0.03644]
[1763381848410,0.52205186,95550.0,95526.0,0.03644]
[1763381848615,0.52205186,95550.0,95527.0,0.02083]
[1763381848818,0.04797,95549.0,95527.0,0.02083]
[1763381849388,0.01513,95549.0,95527.0,0.02083]
[1763381849602,0.01513,95559.0,95527.0,0.02083]
[1763381849823,0.01513,95552.0,95527.0,0.02083]
[1763381850180,0.04797,95559.0,95530.0,0.52205186]
[1763381850599,0.03284,95576.0,95558.0,0.02083]
[1763381852239,0.03284,95571.0,95552.0,0.02083]
[1763381852468,0.246,95578.0,95560.0,0.02083]
[1763381852685,0.01513,95574.0,95560.0,0.00583]
[1763381853904,0.01513,95574.0,95560.0,0.01166]
[1763381854114,0.01513,95581.0,95560.0,0.01166]
[1763381854497,0.03284,95580.0,95560.0,0.01166]
[1763381854697,0.03284,95580.0,95560.0,0.00583]
[1763381855820,0.03284,95580.0,95560.0,0.01166]
[1763381856050,0.03284,95580.0,95560.0,0.00583]
[1763381856602,0.03284,95580.0,95560.0,0.01166]
[1763381856805,0.01513,95581.0,95560.0,0.01166]
[1763381859893,0.01513,95581.0,95540.0,0.59290697]
[1763381860117,0.01513,95581.0,95550.0,0.10416178]
[1763381860326,0.01513,95581.0,95551.0,0.02093123]
[1763381860550,0.01513,95581.0,95552.0,0.02093101]
[1763381860757,0.04797,95581.0,95553.0,0.02093079]
[1763381860959,0.04797,95581.0,95554.0,0.02093057]
[1763381861226,0.04797,95581.0,95555.0,0.02093035]
[1763381861405,0.04797,95581.0,95550.0,0.10416178]
[1763381861406,0.04797,95581.0,95556.0,0.02093013]
[1763381861618,0.04797,95581.0,95551.0,0.02093123]
[1763381862841,4.1090479,95561.0,95551.0,0.02093123]
[1763381864040,3.93129945,95561.0,95551.0,0.02093123]
[1763381866114,3.93129945,95561.0,95540.0,0.59290697]
[1763381866312,3.93129945,95561.0,95548.0,0.10416178]
[1763381866781,3.93129945,95561.0,95548.0,0.05016178]
[1763381867383,3.7498171,95561.0,95548.0,0.05016178]
[1763381870786,3.7498171,95561.0,95550.0,0.5218114]
[1763381873955,3.7498171,95561.0,95550.0,0.4548114]
[1763381875046,3.58675875,95561.0,95550.0,0.4548114]
[1763381879513,3.58675875,95561.0,95550.0,0.4548114]
[1763381881114,3.58675875,95561.0,95548.0,0.05016178]
[1763381881320,3.58675875,95561.0,95532.0,0.04341874]
[1763381881544,0.5218114,95560.0,95531.0,0.10416178]
[1763381881800,0.5249314,95560.0,95531.0,0.10416178]
[1763381882617,0.00312,95560.0,95540.0,0.5218114]
[1763381882832,0.00312,95560.0,95541.0,0.02093342]
[1763381883038,0.00312,95560.0,95542.0,0.0209332]
[1763381883290,0.00312,95560.0,95543.0,0.02093298]
[1763381883527,0.00312,95560.0,95544.0,0.02093276]
[1763381883734,0.00312,95560.0,95545.0,0.02093254]
[1763381883939,0.00312,95560.0,95546.0,0.02093232]
[1763381884148,3.58675875,95561.0,95547.0,0.0209321]
[1763381884352,3.58675875,95561.0,95550.0,0.5218114]
[1763381884560,3.58675875,95561.0,95551.0,0.02093123]
[1763381884769,3.58675875,95561.0,95552.0,0.02093101]
[1763381884974,3.58675875,95561.0,95553.0,0.02093079]
[1763381885181,3.58675875,95561.0,95554.0,0.02093057]
[1763381885399,3.58675875,95561.0,95555.0,0.02093035]
[1763381885626,3.58675875,95561.0,95551.0,0.02093123]
[1763381886733,3.58675875,95561.0,95551.0,0.12509301]
[1763381887391,3.58675875,95561.0,95551.0,0.64690441]
[1763381888503,3.58675875,95561.0,95551.0,0.56890441]
[1763381889341,3.58675875,95561.0,95551.0,0.5218114]
[1763381889614,3.58675875,95561.0,95552.0,0.11355173]
[1763381889821,3.58675875,95561.0,95553.0,0.04341874]
[1763381889965,2.36254875,95561.0,95555.0,0.04341874]
[1763381890143,2.36254875,95561.0,95552.0,0.10416178]
[1763381890144,2.36254875,95561.0,95557.0,0.04341874]
[1763381890364,2.36254875,95561.0,95559.0,0.04341874]
[1763381890568,2.36254875,95561.0,95560.0,0.05280792]
[1763381891764,2.02798887,95561.0,95560.0,0.05380792]
[1763381891958,1.95038192,95561.0,95560.0,0.57671133]
[1763381892215,1.95038192,95561.0,95560.0,0.60816359]
[1763381893192,1.85384798,95561.0,95560.0,0.60816359]
[1763381893417,1.81798053,95561.0,95560.0,0.60816359]
[1763381893603,1.77818471,95561.0,95560.0,0.60816359]
[1763381893810,1.76410978,95561.0,95560.0,0.60816359]
[1763381894011,1.64451685,95561.0,95560.0,0.60816359]
[1763381895344,1.62875193,95561.0,95560.0,0.60816359]
[1763381895551,1.62306653,95561.0,95560.0,0.60816359]
[1763381895957,1.61740334,95561.0,95560.0,0.60816359]
[1763381896456,1.48566214,95561.0,95560.0,0.60816359]
[1763381896638,1.48566214,95561.0,95560.0,0.56474485]
[1763381897347,1.48566214,95561.0,95560.0,0.57218485]
[1763381897565,1.06582055,95561.0,95560.0,0.57218485]
[1763381897776,1.0344488,95561.0,95560.0,0.57118485]
[1763381898164,1.0344488,95561.0,95560.0,0.57318485]
[1763381898731,1.0344488,95561.0,95560.0,0.61660359]
[1763381899518,1.0344488,95561.0,95560.0,0.93254359]
[1763381901555,1.0344488,95561.0,95560.0,1.07964359]
[1763381902368,1.0344488,95561.0,95560.0,0.870351]
[1763381903731,1.0344488,95561.0,95560.0,0.792351]
[1763381904415,0.91672899,95561.0,95560.0,0.792351]
[1763381905400,0.91672899,95561.0,95560.0,1.00164359]
[1763381906378,0.91629899,95561.0,95560.0,1.00164359]
[1763381908241,0.91629899,95561.0,95560.0,0.792351]
[1763381909053,0.91629899,95561.0,95560.0,1.00164359]
[1763381909630,0.91629899,95561.0,95560.0,0.792351]
[1763381910826,0.91629899,95561.0,95560.0,0.547351]
[1763381913336,0.91629899,95561.0,95560.0,0.50393226]
[1763381914170,0.91629899,95561.0,95560.0,0.547351]
[1763381914371,0.91629899,95561.0,95560.0,0.545351]
[1763381914789,0.91629899,95561.0,95560.0,0.547351]
[1763381914966,0.91629899,95561.0,95560.0,0.545351]
[1763381915413,0.91629899,95561.0,95560.0,0.547351]
[1763381917920,0.91629899,95561.0,95560.0,0.469351]
[1763381918276,0.91629899,95561.0,95560.0,0.50080434]
[1763381919024,0.91629899,95561.0,95560.0,0.35370434]
[1763381925225,0.91629899,95561.0,95560.0,0.29270434]
[1763381930331,0.89925583,95561.0,95560.0,0.29270434]
[1763381931688,0.89925583,95561.0,95560.0,0.2492856]
[1763381932337,0.89925583,95561.0,95560.0,0.15083226]
[1763381932760,0.89925583,95561.0,95560.0,0.14883226]
[1763381932930,0.89925583,95561.0,95560.0,0.14683226]
[1763381933491,0.89925583,95561.0,95560.0,0.14783226]
[1763381933807,0.89925583,95561.0,95560.0,0.14883226]
[1763381938027,0.89925583,95561.0,95560.0,0.14688226]
[1763381939355,0.89925583,95561.0,95560.0,0.11988226]
[1763381943459,0.89925583,95561.0,95560.0,0.13266428]
[1763381944014,0.89925583,95561.0,95560.0,0.16412]
[1763381944340,0.89925583,95561.0,95560.0,0.20753874]
[1763381944946,0.88221232,95561.0,95560.0,0.20753874]
[1763381946139,0.88221232,95561.0,95560.0,0.20553874]
[1763381946277,0.88221232,95561.0,95560.0,0.12753874]
[1763381946501,0.88221232,95561.0,95560.0,0.13153874]
[1763381949911,0.88221232,95561.0,95560.0,0.34083133]
[1763381950120,0.88221232,95561.0,95560.0,0.32804931]
[1763381951089,0.88221232,95561.0,95560.0,0.11875672]
[1763381951496,0.88221232,95561.0,95560.0,0.32804931]
[1763381952980,0.88221232,95561.0,95560.0,0.11875672]
[1763381953474,0.88221232,95561.0,95560.0,0.25923151]
[1763381953689,0.88221232,95561.0,95560.0,0.28149949]
[1763381953976,0.88221232,95561.0,95560.0,0.59543949]
[1763381954981,0.86517126,95561.0,95560.0,0.59543949]
[1763381955719,0.86517126,95561.0,95560.0,0.91843949]
[1763381958545,0.66609687,95561.0,95560.0,0.91843949]
[1763381960367,0.66609687,95561.0,95560.0,0.91443949]
[1763381960739,0.66609687,95561.0,95560.0,0.91843949]
[1763381961139,0.66609687,95561.0,95560.0,0.85743949]
[1763381963192,0.66609687,95561.0,95560.0,0.90085823]
[1763381963561,0.66609687,95561.0,95560.0,0.92183823]
[1763381963762,0.49422862,95561.0,95560.0,0.93183823]
[1763381964496,0.49422862,95561.0,95560.0,1.04223823]
[1763381964696,0.49422862,95561.0,95560.0,1.03023823]
[1763381964944,0.49422862,95561.0,95560.0,1.04223823]
[1763381965112,0.49422862,95561.0,95560.0,1.04023823]
[1763381965333,0.49422862,95561.0,95560.0,1.04223823]
[1763381965531,0.44891276,95561.0,95560.0,1.04223823]
[1763381965739,0.33124982,95561.0,95560.0,1.04223823]
[1763381966384,0.23887884,95561.0,95560.0,1.04223823]
[1763381966519,0.21502532,95561.0,95560.0,1.04223823]
[1763381966720,0.14035653,95561.0,95560.0,1.04223823]
[1763381967019,0.10980664,95561.0,95560.0,1.04223823]
[1763381967230,0.10980664,95561.0,95560.0,1.04023823]
[1763381967642,0.10980664,95561.0,95560.0,1.04223823]
[1763381967839,0.10980664,95561.0,95560.0,1.03223823]
[1763381968042,0.10980664,95561.0,95560.0,1.04223823]
[1763381968244,0.10980664,95561.0,95560.0,1.01223823]
[1763381968445,0.10980664,95561.0,95560.0,1.01423823]
[1763381968683,0.10980664,95561.0,95560.0,1.04568165]
[1763381968875,0.09951226,95561.0,95560.0,1.04568165]
[1763381969117,0.00026424,95576.0,95575.0,0.53225974]
[1763381969306,0.00030847,95576.0,95575.0,0.84614974]
[1763381969512,0.00030847,95576.0,95575.0,0.89956848]
[1763381970351,0.00030847,95576.0,95575.0,0.92474047]
[1763381970703,0.00030847,95576.0,95575.0,0.92674047]
[1763381971353,0.10416178,95644.0,95600.0,0.20999999]
[1763381971573,0.10460447,95644.0,95620.0,0.52149654]
[1763381971773,0.10460447,95644.0,95643.0,0.04435]
[1763381972542,0.00044269,95644.0,95643.0,0.04435]
[1763381973136,0.00044269,95644.0,95643.0,0.08259]
[1763381975015,0.00044269,95644.0,95643.0,0.04435]
[1763381975414,0.00044269,95644.0,95643.0,0.00735]
[1763381976234,0.00044269,95644.0,95643.0,0.05053]
[1763381977170,0.00044269,95644.0,95643.0,0.02894]
[1763381977370,0.00044269,95644.0,95632.0,0.01953]
[1763381977980,0.00044269,95644.0,95632.0,0.04112]
[1763381978312,0.00044269,95644.0,95633.0,0.02159]
[1763381978522,0.00044269,95644.0,95643.0,0.02159]
[1763381978920,0.00044269,95644.0,95643.0,0.04318]
[1763381982321,0.00230129,95644.0,95643.0,0.04318]
[1763381982525,0.00230129,95644.0,95643.0,0.02518]
[1763381983203,0.00230129,95644.0,95633.0,0.00359]
[1763381983405,0.00044269,95644.0,95633.0,0.02450328]
[1763381983789,0.00044269,95644.0,95633.0,0.02091328]
[1763381984193,0.00044269,95644.0,95634.0,0.00359]
[1763381984756,0.00044269,95644.0,95634.0,0.02450306]
[1763381984973,0.00044269,95644.0,95632.0,0.01953]
[1763381985146,0.52134969,95644.0,95632.0,0.01953]
[1763381985380,0.00044269,95644.0,95632.0,0.01953]
[1763381985552,0.00044269,95644.0,95633.0,0.00359]
[1763381987895,0.01894,95654.0,95633.0,0.00359]
[1763381988074,0.520907,95650.0,95633.0,0.00359]
[1763381989700,0.520907,95650.0,95632.0,0.01012]
[1763381991179,0.520907,95650.0,95632.0,0.0310335]
[1763381991383,0.520907,95650.0,95633.0,0.02091328]
[1763381991804,0.00158544,95634.0,95633.0,0.02091328]
[1763381993230,0.00158544,95634.0,95632.0,0.01012]
[1763381993433,0.520907,95650.0,95632.0,0.01012]
[1763381993630,0.00155812,95633.0,95632.0,0.01012]
[1763381996824,0.00155812,95633.0,95610.0,0.2]
[1763381997019,0.02054,95645.0,95620.0,0.520907]
[1763381997619,0.520907,95640.0,95620.0,0.520907]
[1763381997824,0.03788,95644.0,95620.0,0.520907]
[1763381998025,0.520907,95640.0,95620.0,0.520907]
[1763381998633,0.520907,95640.0,95614.0,0.31376]
[1763381998835,0.520907,95640.0,95620.0,0.520907]
[1763381999667,0.03788,95644.0,95620.0,0.520907]
[1763382000258,0.01946114,95643.0,95620.0,0.520907]
[1763382000619,0.02054,95645.0,95620.0,0.520907]
[1763382000757,0.01946114,95644.0,95620.0,0.520907]
[1763382000955,0.02054,95645.0,95620.0,0.520907]
[1763382001179,0.01946113,95644.0,95620.0,0.520907]
[1763382001383,0.02054,95645.0,95620.0,0.520907]
[1763382001583,0.01946342,95644.0,95620.0,0.520907]
[1763382001745,0.02054,95645.0,95620.0,0.520907]
[1763382001940,0.0194635,95644.0,95620.0,0.520907]
[1763382002230,0.02154,95645.0,95620.0,0.520907]
[1763382002923,0.00123024,95621.0,95620.0,0.520907]
[1763382003106,0.00123024,95621.0,95614.0,0.31376]
[1763382003311,0.02154,95645.0,95614.0,0.31376]
[1763382003512,0.02054,95645.0,95614.0,0.31376]
[1763382003722,0.05037729,95654.0,95620.0,0.520907]
[1763382003922,0.001,95644.0,95630.0,0.520907]
[1763382004101,0.00105093,95644.0,95630.0,0.520907]
[1763382004307,0.00105093,95644.0,95620.0,0.834647]
[1763382004308,0.00105093,95644.0,95634.0,0.520907]
[1763382004509,5.093e-05,95644.0,95635.0,0.02091284]
[1763382005867,5.093e-05,95644.0,95634.0,0.520907]
[1763382005868,5.093e-05,95644.0,95634.0,1.041814]
[1763382006109,5.093e-05,95644.0,95635.0,0.02091284]
[1763382006310,5.093e-05,95644.0,95635.0,0.33460284]
[1763382007642,5.093e-05,95644.0,95635.0,0.31369]
[1763382008401,0.03793093,95644.0,95635.0,0.31369]
[1763382008600,5.093e-05,95644.0,95635.0,0.31369]
[1763382008806,0.04935008,95636.0,95635.0,0.31369]
[1763382009005,0.08723008,95636.0,95635.0,0.31369]
[1763382009219,0.04935008,95636.0,95635.0,0.31369]
[1763382010250,0.08723008,95636.0,95635.0,0.31369]
[1763382010556,0.04935008,95636.0,95635.0,0.31369]
[1763382010703,0.08723008,95636.0,95635.0,0.31369]
[1763382011108,0.08723008,95636.0,95635.0,0.24269]
[1763382011702,0.13064882,95636.0,95635.0,0.24269]
[1763382011905,0.04341874,95635.0,95595.0,0.03144362]
[1763382012110,0.10416178,95619.0,95595.0,0.03144362]
[1763382012307,0.10416178,95619.0,95590.0,0.520907]
[1763382012514,0.02054,95618.0,95590.0,0.520907]
[1763382014359,0.02154,95618.0,95590.0,0.520907]
[1763382016169,0.03788,95617.0,95590.0,0.520907]
[1763382016556,0.02154,95618.0,95600.0,0.520907]
[1763382016887,0.001,95618.0,95601.0,0.02092028]
[1763382017089,0.02054,95625.0,95602.0,0.02092006]
[1763382017238,0.10416178,95624.0,95603.0,0.02091984]
[1763382017437,0.10416178,95624.0,95604.0,0.02091962]
[1763382017658,0.10416178,95624.0,95601.0,0.02092028]
[1763382018219,0.0209204,95623.0,95584.0,0.03144685]
[1763382018425,0.0209204,95624.0,95600.0,0.520907]
[1763382018635,0.12508218,95623.0,95601.0,0.01381266]
[1763382019659,0.520907,95620.0,95590.0,0.520907]
[1763382019859,0.0209204,95619.0,95590.0,0.520907]
[1763382020114,0.0209204,95619.0,95600.0,0.520907]
[1763382020324,0.520907,95620.0,95601.0,0.01485868]
[1763382020532,0.0209204,95619.0,95602.0,0.01485852]
[1763382020734,0.0209204,95619.0,95584.0,0.03144685]
[1763382020935,0.0209204,95619.0,95590.0,0.520907]
[1763382021448,0.0209204,95619.0,95600.0,0.520907]
[1763382021583,0.0209204,95624.0,95601.0,0.01485868]
[1763382021783,0.02054,95625.0,95600.0,0.520907]
[1763382021784,0.0209204,95623.0,95602.0,0.01485888]
[1763382022006,0.02054,95625.0,95600.0,0.520907]
[1763382022007,0.0209204,95624.0,95601.0,0.01485888]
[1763382022231,0.12508218,95623.0,95601.0,0.01485888]
[1763382022630,0.0209204,95623.0,95601.0,0.01485888]
[1763382022834,0.06433914,95629.0,95601.0,0.01485888]
[1763382023052,0.00071094,95602.0,95601.0,0.01485888]
[1763382023431,0.00071094,95602.0,95593.0,0.01636526]
[1763382023631,0.0209204,95625.0,95593.0,0.01636526]
[1763382024237,0.0210531,95625.0,95600.0,0.520907]
[1763382024439,0.0210531,95625.0,95601.0,0.01636494]
[1763382024639,0.01374969,95625.0,95602.0,0.01636476]
[1763382025054,0.01374969,95625.0,95603.0,0.01471462]
[1763382025414,0.01374969,95625.0,95600.0,0.520907]
[1763382025885,0.01355512,95624.0,95600.0,0.520907]
[1763382026037,0.01796586,95623.0,95600.0,0.520907]
[1763382026236,0.0001327,95625.0,95600.0,0.520907]
[1763382026237,0.01821068,95625.0,95600.0,0.520907]
[1763382026842,0.02248499,95624.0,95600.0,0.520907]
[1763382027048,0.02627649,95625.0,95610.0,0.520907]
[1763382027257,0.0001327,95625.0,95610.0,0.520907]
[1763382029116,0.0001327,95625.0,95611.0,0.00269575]
[1763382029574,0.00098428,95612.0,95611.0,0.00269575]
[1763382029965,0.00098428,95612.0,95602.0,0.00269575]
[1763382030181,0.0001327,95625.0,95601.0,0.00269599]
[1763382030382,0.0001327,95625.0,95610.0,0.520907]
[1763382030591,0.0001327,95625.0,95611.0,0.00269574]
[1763382030971,0.00098428,95612.0,95611.0,0.00369574]
[1763382031174,0.00098428,95612.0,95611.0,0.001]
[1763382032277,0.00098428,95612.0,95600.0,1.26795423]
[1763382032494,0.0001327,95625.0,95600.0,1.26795423]
[1763382032718,0.0006836,95601.0,95600.0,0.54704723]
[1763382033033,0.0006836,95601.0,95600.0,0.02614023]
[1763382033482,0.0006836,95601.0,95600.0,0.02714023]
[1763382033912,0.0006836,95601.0,95600.0,0.02614023]
[1763382034255,0.0006836,95601.0,95600.0,0.02714023]
[1763382034471,0.0006836,95601.0,95600.0,0.02814023]
[1763382036516,0.0006836,95601.0,95600.0,0.02714023]
[1763382038317,0.520907,95630.0,95601.0,0.03812]
[1763382038490,0.00949123,95629.0,95624.0,0.01906]
[1763382038934,0.00065596,95625.0,95624.0,0.01906]
[1763382039496,0.00065596,95625.0,95601.0,0.01950269]
[1763382039694,0.01049123,95630.0,95610.0,0.520907]
[1763382040124,0.01049123,95630.0,95601.0,0.01950269]
[1763382040367,0.00949123,95630.0,95601.0,0.01950269]
[1763382040711,0.00949123,95630.0,95602.0,0.02092006]
[1763382042482,0.01049123,95630.0,95602.0,0.02092006]
[1763382042908,0.001,95630.0,95602.0,0.02092006]
[1763382043633,0.00949123,95637.0,95602.0,0.02092006]
[1763382044235,0.00949123,95638.0,95602.0,0.02092006]
[1763382044438,0.00949123,95637.0,95602.0,0.02092006]
[1763382044847,0.52113685,95630.0,95601.0,0.01950269]
[1763382045072,0.10416178,95628.0,95601.0,0.01950269]
[1763382045275,0.00949123,95627.0,95601.0,0.01950269]
[1763382045448,0.52113685,95620.0,95601.0,0.01950269]
[1763382045652,0.00949123,95619.0,95601.0,0.01950269]
[1763382045850,0.04769123,95619.0,95601.0,0.01950269]
[1763382046256,0.00949123,95619.0,95601.0,0.01950269]
[1763382046655,0.00949123,95627.0,95591.0,0.02092247]
[1763382046859,0.00949123,95626.0,95592.0,0.02092225]
[1763382047070,0.00949123,95626.0,95593.0,0.02092203]
[1763382047272,0.00993357,95627.0,95600.0,0.52113685]
[1763382047510,0.11365301,95626.0,95590.0,0.52113685]
[1763382047656,0.11365301,95626.0,95590.0,0.72113685]
[1763382047876,0.0382,95625.0,95590.0,0.52113685]
[1763382048042,0.0382,95625.0,95590.0,0.72157919]
[1763382048721,0.10416178,95624.0,95590.0,0.72157919]
[1763382048945,0.10416178,95624.0,95590.0,0.52157919]
[1763382049160,0.0382,95623.0,95590.0,0.52157919]
[1763382049362,0.0382,95623.0,95590.0,0.00044234]
[1763382049563,0.0382,95623.0,95590.0,0.52157919]
[1763382050755,0.52113685,95620.0,95590.0,0.00044234]
[1763382051182,0.0382,95619.0,95590.0,0.00044234]
[1763382053589,0.0382,95619.0,95580.0,0.51102772]
[1763382053800,0.03864206,95619.0,95580.0,0.51102772]
[1763382054448,0.03964206,95619.0,95580.0,0.51102772]
[1763382054958,0.03864206,95619.0,95580.0,0.51102772]
[1763382055177,0.03964206,95619.0,95580.0,0.51102772]
[1763382057462,0.10416178,95609.0,95581.0,0.02092466]
[1763382057660,0.10416178,95609.0,95580.0,0.52113685]
[1763382057900,0.05496,95608.0,95580.0,0.52113685]
[1763382059250,0.01854,95608.0,95581.0,0.02092466]
[1763382060493,0.01854,95608.0,95580.0,0.52113685]
[1763382060685,0.05496,95608.0,95580.0,0.52113685]
[1763382060858,0.10416178,95607.0,95570.0,0.52113685]
[1763382061069,0.14058178,95607.0,95570.0,0.72113685]
[1763382061410,0.03642,95606.0,95570.0,0.72113685]
[1763382061836,0.03642,95606.0,95565.0,0.03145001]